[Event "Asian Amateur Rapid 2024"]
[Site "Al Ain"]
[Date "2024.12.15"]
[Round "4.16"]
[White "Soud, Jaber"]
[Black "Aamer Saeed, Alyileili"]
[Result "1-0"]
[ECO "D36"]
[WhiteElo "1956"]
[BlackElo "1619"]
[Annotator "RC"]
[PlyCount "107"]
[EventDate "2024.12.15"]
[EventType "swiss"]
[EventCountry "UAE"]
[SourceTitle "playchess.com"]
[Source "ChessBase"]
[SourceQuality "1"]
[TimeControl "900+10"]

1. d4 {[%emt 0:00:03]} d5 {[%emt 0:00:01]} 2. c4 {[%emt 0:00:01]} e6 {[%emt 0:00:01]} 3. Nc3 {[%emt 0:00:01]} Nf6 {[%emt 0:00:01]} 4. cxd5 {[%emt 0:00:01]} exd5 {[%emt 0:00:01]} 5. Bg5 {[%emt 0:00:01]} Be7 {[%emt 0:00:01]} 6. e3 {[%emt 0:00:01]} O-O {[%emt 0:00:03]} 7. Bd3 {[%emt 0:00:01]} h6 {[%emt 0:00:01]} 8. Bh4 {[%emt 0:00:02]} c6 {[%emt 0:00:01]} 9. Nf3 {[%emt 0:00:07]} Re8 {[%emt 0:00:02]} 10. Qc2 {[%emt 0:00:01]} Ne4 {[%emt 0:00:01]} 11. Bxe7 {[%emt 0:00:01]} Qxe7 {[%emt 0:00:02]} 12. O-O {[%emt 0:00:08]} Nd7 {[%emt 0:00:22]} 13. b4 {[%emt 0:00:20]} Nd6 {[%emt 0:01:55]} 14. Rab1 {[%emt 0:00:17]} b6 {[%emt 0:01:55]} 15. b5 {[%emt 0:00:39]} Bb7 {[%emt 0:00:39]} 16. bxc6 {[%emt 0:01:30]} Bxc6 {[%emt 0:00:02]} 17. Qb3 {[%emt 0:00:15]} Nf6 {[%emt 0:00:21]} 18. Ne5 {[%emt 0:00:47]} Bb7 {[%emt 0:00:17]} 19. a4 {[%emt 0:00:40]} Rac8 {[%emt 0:00:52]} 20. Nb5 {[%emt 0:03:56]} Nxb5 {[%emt 0:01:17]} 21. axb5 {[%emt 0:00:03]} Nd7 {[%emt 0:00:47]} 22. Bf5 {[%emt 0:00:43]} Nxe5 {[%emt 0:03:24]} 23. Bxc8 {[%emt 0:00:01]} Rxc8 {[%emt 0:00:02]} 24. dxe5 {[%emt 0:00:03]} Qxe5 {[%emt 0:00:02]} 25. Ra1 {[%emt 0:00:20]} Rc3 {[%emt 0:03:20]} 26. Qa4 {[%emt 0:00:17]} d4 {[%emt 0:02:15]} 27. Qxd4 {[%emt 0:00:30]} Qg5 {[%emt 0:00:04]} 28. e4 {[%emt 0:00:03]} Rc5 {[%emt 0:01:10]} 29. Rxa7 {[%emt 0:00:35]} Bc8 {[%emt 0:00:02]} 30. Qe3 {[%emt 0:00:30]} Qg6 {[%emt 0:00:37]} 31. h4 {[%emt 0:02:52]} Kh7 {[%emt 0:00:18]} 32. Qf3 {[%emt 0:00:10]} Be6 {[%emt 0:00:06]} 33. Rd1 {[%emt 0:00:40]} Re5 {[%emt 0:00:08]} 34. Ra8 {[%emt 0:00:45]} Rxe4 {[%emt 0:00:08]} 35. Rdd8 {[%emt 0:00:35]} Re1+ {[%emt 0:00:08]} 36. Kh2 {[%emt 0:00:02]} Qg4 {[%emt 0:00:03]} 37. Qxg4 {[%emt 0:00:25]} Bxg4 {[%emt 0:00:02]} 38. Rab8 {[%emt 0:00:03]} Rb1 {[%emt 0:00:06]} 39. Rxb6 {[%emt 0:00:10]} Be2 {[%emt 0:00:05]} 40. Rd7 {[%emt 0:00:07]} Bc4 {[%emt 0:00:10]} 41. Rc7 {[%emt 0:00:05]} Rxb5 {[%emt 0:00:08]} 42. Rxb5 {[%emt 0:00:03]} Bxb5 {[%emt 0:00:01]} 43. Rxf7 {[%emt 0:00:01]} Bc4 {[%emt 0:00:04]} 44. Rf3 {[%emt 0:00:04]} Bd5 {[%emt 0:00:03]} 45. Re3 {[%emt 0:00:02]} Bf7 {[%emt 0:00:04]} 46. g4 {[%emt 0:00:01]} Bd5 {[%emt 0:00:04]} 47. Kg3 {[%emt 0:00:02]} Kg6 {[%emt 0:00:05]} 48. f4 {[%emt 0:00:02]} Kf6 {[%emt 0:00:06]} 49. Rd3 {[%emt 0:00:02]} Bc4 {[%emt 0:00:05]} 50. Rd6+ {[%emt 0:00:02]} Kf7 {[%emt 0:00:02]} 51. Kf3 {[%emt 0:00:03]} Bb3 {[%emt 0:00:12]} 52. Ke4 {[%emt 0:00:01]} Bc2+ {[%emt 0:00:04]} 53. Ke5 {[%emt 0:00:01]} Bd1 {[%emt 0:00:06]} 54. Rxd1 {[%emt 0:00:04]} 1-0

[Event "Asian Amateur Rapid 2024"]
[Site "Al Ain"]
[Date "2024.12.15"]
[Round "4.17"]
[White "Dadabaev, Zhanybek"]
[Black "Raj Aryan"]
[Result "0-1"]
[ECO "D00"]
[WhiteElo "1927"]
[BlackElo "1609"]
[Annotator "RC"]
[PlyCount "68"]
[EventDate "2024.12.15"]
[EventType "swiss"]
[EventCountry "UAE"]
[SourceTitle "playchess.com"]
[Source "ChessBase"]
[SourceQuality "1"]
[TimeControl "900+10"]

1. d4 {[%emt 0:00:01]} d5 {[%emt 0:00:01]} 2. Bf4 {[%emt 0:00:01]} c5 {[%emt 0:00:01]} 3. e3 {[%emt 0:00:23]} Nc6 {[%emt 0:00:02]} 4. c3 {[%emt 0:00:28]} Qb6 {[%emt 0:00:21]} 5. Qb3 {[%emt 0:00:14]} Nf6 {[%emt 0:00:05]} 6. Nd2 {[%emt 0:00:13]} Bf5 {[%emt 0:01:28]} 7. dxc5 {[%emt 0:01:55]} Qxb3 {[%emt 0:00:02]} 8. Nxb3 {[%emt 0:01:01]} e5 {[%emt 0:00:01]} 9. Bg3 {[%emt 0:00:01]} Nd7 {[%emt 0:00:01]} 10. Nf3 {[%emt 0:00:08]} f6 {[%emt 0:00:04]} 11. Be2 {[%emt 0:00:49]} Nxc5 {[%emt 0:00:03]} 12. O-O {[%emt 0:00:08]} Ne4 {[%emt 0:00:38]} 13. c4 {[%emt 0:00:46]} Be6 {[%emt 0:02:42]} 14. cxd5 {[%emt 0:00:26]} Bxd5 {[%emt 0:00:01]} 15. Rfd1 {[%emt 0:00:06]} O-O-O {[%emt 0:00:03]} 16. Nfd2 {[%emt 0:01:11]} Nxg3 {[%emt 0:00:27]} 17. hxg3 {[%emt 0:00:03]} f5 {[%emt 0:00:36]} 18. Rac1 {[%emt 0:00:32]} Kb8 {[%emt 0:02:29]} 19. Bc4 {[%emt 0:03:11]} Be7 {[%emt 0:01:38]} 20. Bxd5 {[%emt 0:00:15]} Rxd5 {[%emt 0:00:01]} 21. e4 {[%emt 0:00:04]} fxe4 {[%emt 0:00:19]} 22. Nxe4 {[%emt 0:00:01]} Rhd8 {[%emt 0:07:47]} 23. Rxd5 {[%emt 0:00:12]} Rxd5 {[%emt 0:00:00]} 24. Kf1 {[%emt 0:00:22]} Nd4 {[%emt 0:00:00]} 25. Nbd2 {[%emt 0:00:24]} Ne6 {[%emt 0:00:00]} 26. Nf3 {[%emt 0:00:11]} Nc5 {[%emt 0:00:00]} 27. Nc3 {[%emt 0:00:19]} Rd3 {[%emt 0:00:00]} 28. Nxe5 {[%emt 0:00:06]} Rd2 {[%emt 0:00:00]} 29. a3 {[%emt 0:01:01]} Bf6 {[%emt 0:00:00]} 30. Nc4 {[%emt 0:00:13]} Rd4 {[%emt 0:00:00]} 31. Nb5 {[%emt 0:00:08]} Rd5 {[%emt 0:00:43]} 32. Ne3 {[%emt 0:00:14]} Rh5 {[%emt 0:00:39]} 33. g4 {[%emt 0:00:42]} Rh1+ {[%emt 0:00:04]} 34. Ke2 {[%emt 0:00:10]} Rxc1 {[%emt 0:00:02]} 0-1

[Event "Asian Amateur Rapid 2024"]
[Site "Al Ain"]
[Date "2024.12.15"]
[Round "4.18"]
[White "Muhammad Shayan Noushad Ibrahi"]
[Black "Al Sabti, Wadhah"]
[Result "1-0"]
[ECO "C54"]
[WhiteElo "1716"]
[BlackElo "1470"]
[Annotator "NA COMBH"]
[PlyCount "91"]
[EventDate "2024.12.15"]
[EventType "swiss"]
[EventCountry "UAE"]
[SourceTitle "playchess.com"]
[Source "ChessBase"]
[SourceQuality "1"]
[TimeControl "900+10"]

1. e4 {[%emt 0:00:02]} e5 {[%emt 0:00:26]} 2. Nf3 {[%emt 0:00:03]} Nc6 {[%emt 0:00:06]} 3. Bc4 {[%emt 0:00:09]} Nf6 {[%emt 0:00:29]} 4. d3 {[%emt 0:00:02]} Bc5 {[%emt 0:00:02]} 5. O-O {[%emt 0:00:09]} d6 {[%emt 0:00:04]} 6. c3 {[%emt 0:00:02]} O-O {[%emt 0:00:08]} 7. h3 {[%emt 0:00:03]} h6 {[%emt 0:00:03]} 8. Re1 {[%emt 0:00:03]} Be6 {[%emt 0:00:17]} 9. Bb5 {[%emt 0:00:26]} a6 {[%emt 0:00:26]} 10. Ba4 {[%emt 0:00:05]} b5 {[%emt 0:00:32]} 11. Bc2 {[%emt 0:00:03]} Bb6 {[%emt 0:00:13]} 12. a3 {[%emt 0:00:32]} Nh7 {[%emt 0:00:57]} 13. d4 {[%emt 0:00:03]} exd4 {[%emt 0:00:27]} 14. cxd4 {[%emt 0:00:16]} Bd7 {[%emt 0:00:11]} 15. Nc3 {[%emt 0:00:10]} Re8 {[%emt 0:00:26]} 16. Qd3 {[%emt 0:00:12]} Nf8 {[%emt 0:03:14]} 17. Nd5 {[%emt 0:00:52]} Ba7 {[%emt 0:01:05]} 18. Nf4 {[%emt 0:01:51]} Qc8 {[%emt 0:02:31]} 19. b3 {[%emt 0:02:31]} b4 {[%emt 0:01:48]} 20. a4 {[%emt 0:00:57]} a5 {[%emt 0:00:01]} 21. Nh5 {[%emt 0:00:39]} Ng6 {[%emt 0:01:37]} 22. g4 {[%emt 0:01:35]} Rf8 {[%emt 0:01:03]} 23. Qe3 {[%emt 0:00:14]} Nce5 {[%emt 0:00:19]} 24. Nh2 {[%emt 0:00:53]} Nc6 {[%emt 0:00:24]} 25. Bb2 {[%emt 0:00:28]} Qd8 {[%emt 0:00:04]} 26. f4 {[%emt 0:00:32]} Qh4 {[%emt 0:00:05]} 27. Kg2 {[%emt 0:00:16]} Rfe8 {[%emt 0:00:13]} 28. Nf3 {[%emt 0:00:14]} Qe7 {[%emt 0:00:07]} 29. f5 {[%emt 0:00:28]} Nge5 {[%emt 0:00:01]} 30. f6 {[%emt 0:00:10]} Qe6 {[%emt 0:00:57]} 31. Nxg7 {[%emt 0:00:35]} Qxf6 {[%emt 0:00:05]} 32. Nxe8 {[%emt 0:00:02]} Rxe8 {[%emt 0:00:14]} 33. dxe5 {[%emt 0:00:03]} Bxe3 {[%emt 0:00:09]} 34. exf6 {[%emt 0:00:03]} Bb6 {[%emt 0:00:03]} 35. Rad1 {[%emt 0:00:15]} Be6 {[%emt 0:00:13]} 36. e5 {[%emt 0:00:07]} d5 {[%emt 0:00:02]} 37. Bf5 {[%emt 0:00:08]} Bxf5 {[%emt 0:00:18]} 38. gxf5 {[%emt 0:00:04]} Kh7 {[%emt 0:00:17]} 39. e6 {[%emt 0:00:02]} Rg8+ {[%emt 0:00:08]} 40. Kh1 {[%emt 0:00:10]} Rg3 {[%emt 0:00:12]} 41. exf7 {[%emt 0:00:07]} Rxf3 {[%emt 0:00:16]} 42. f8=Q {[%emt 0:00:12]} Rg3 {[%emt 0:00:18]} 43. Re7+ {[%emt 0:00:07]} Nxe7 {[%emt 0:00:03]} 44. fxe7 {[%emt 0:00:04]} Rxh3+ {[%emt 0:00:14]} 45. Kg2 {[%emt 0:00:02]} Rxb3 {[%emt 0:00:14] Check Result:?ev?} 46. Qh8# {[%emt 0:00:14]} 1-0

[Event "Asian Amateur Rapid 2024"]
[Site "Al Ain"]
[Date "2024.12.15"]
[Round "4.19"]
[White "Adel, Tahseen Khalil"]
[Black "Hamad Shuaib Al Kaff"]
[Result "1-0"]
[ECO "D52"]
[WhiteElo "1833"]
[BlackElo "1710"]
[Annotator "NA COMBH"]
[PlyCount "85"]
[EventDate "2024.12.15"]
[EventType "swiss"]
[EventCountry "UAE"]
[SourceTitle "playchess.com"]
[Source "ChessBase"]
[SourceQuality "1"]
[TimeControl "900+10"]

1. d4 {[%emt 0:00:01]} d5 {[%emt 0:00:02]} 2. c4 {[%emt 0:00:01]} e6 {[%emt 0:00:01]} 3. Nf3 {[%emt 0:00:02]} Nf6 {[%emt 0:00:02]} 4. Nc3 {[%emt 0:00:01]} c6 {[%emt 0:00:01]} 5. Bg5 {[%emt 0:00:03]} Nbd7 {[%emt 0:00:02]} 6. e3 {[%emt 0:00:04]} Qa5 {[%emt 0:00:02]} 7. Nd2 {[%emt 0:00:11]} dxc4 {[%emt 0:00:16] is recently more successful than 7...Bb4.} 8. Bxf6 {[%emt 0:00:06]} Nxf6 {[%emt 0:00:02]} 9. Bxc4 {[%emt 0:00:05]} Bb4 {[%emt 0:00:08] D52: Queen's Gambit Declined: Cambridge Springs Variation.} 10. Rc1 {[%emt 0:00:16]} O-O {[%emt 0:00:07]} 11. O-O {[%emt 0:00:03]} Nd5 $146 {[%emt 0:00:36]} ({Predecessor:} 11... b5 12. Bb3 Bb7 13. a3 Be7 14. Nce4 Rad8 15. Qe2 b4 16. Nxf6+ Bxf6 17. Nc4 Qb5 {1-0 Castillo Beitia,A (2009)-Molina,J (1966) Bolivarian Games Blitz 2024 (2.11)}) 12. Nb3 {[%emt 0:00:20]} Qc7 {[%emt 0:01:09]} 13. Nxd5 {[%emt 0:00:10]} exd5 {[%emt 0:00:17]} 14. Bxd5 {[%emt 0:00:03]} Qe7 {[%emt 0:00:37]} 15. Bf3 {[%emt 0:00:07]} Qg5 {[%emt 0:00:37]} 16. Nc5 {[%emt 0:00:28]} Rd8 {[%emt 0:00:36]} 17. Qb3 {[%emt 0:00:48]} Bxc5 {[%emt 0:02:17]} 18. Rxc5 {[%emt 0:00:04]} Qg6 {[%emt 0:01:18]} 19. Rfc1 {[%emt 0:03:25]} Rd6 {[%emt 0:01:01]} 20. Re5 {[%emt 0:03:28]} Be6 {[%emt 0:04:55]} 21. Qxb7 {[%emt 0:01:03]} Rad8 {[%emt 0:00:32]} 22. Qe7 {[%emt 0:02:20]} h6 {[%emt 0:02:07]} 23. Be4 {[%emt 0:02:46]} f5 {[%emt 0:00:02]} 24. Rxc6 {[%emt 0:00:23]} R8d7 {[%emt 0:01:14]} 25. Rc8+ {[%emt 0:00:41]} Kh7 {[%emt 0:00:22]} 26. Qf8 {[%emt 0:00:20]} Qg4 {[%emt 0:00:47]} 27. Bxf5+ {[%emt 0:00:43]} Bxf5 {[%emt 0:00:08]} 28. Qxf5+ {[%emt 0:00:02]} Qxf5 {[%emt 0:00:04]} 29. Rxf5 {[%emt 0:00:01]} Rb6 {[%emt 0:00:07]} 30. Rc2 {[%emt 0:00:08]} Rdb7 {[%emt 0:00:03]} 31. b3 {[%emt 0:00:02]} a5 {[%emt 0:00:04]} 32. h3 {[%emt 0:00:01]} Ra7 {[%emt 0:00:08]} 33. Rc4 {[%emt 0:00:11]} Kg6 {[%emt 0:00:32]} 34. Rfc5 {[%emt 0:00:08]} Kh7 {[%emt 0:00:02]} 35. d5 {[%emt 0:00:18]} Rd6 {[%emt 0:00:12]} 36. e4 {[%emt 0:00:06]} Rd8 {[%emt 0:00:14]} 37. e5 {[%emt 0:02:21]} Kg6 {[%emt 0:00:04]} 38. g4 {[%emt 0:00:00]} Kg5 {[%emt 0:00:23]} 39. Kg2 {[%emt 0:00:00]} Rf8 {[%emt 0:00:03]} 40. e6 {[%emt 0:00:00]} Kf6 {[%emt 0:00:36]} 41. Rf4+ {[%emt 0:00:00]} Ke7 {[%emt 0:00:00]} 42. Rxf8 {[%emt 0:00:00]} Kxf8 {[%emt 0:00:00] Check Result:#13} 43. d6 {[%emt 0:00:00]} 1-0

[Event "Asian Amateur Rapid 2024"]
[Site "Al Ain"]
[Date "2024.12.15"]
[Round "4.20"]
[White "Ahmed Younes Alkhemeiri"]
[Black "Yahya Shuaib Al Kaff"]
[Result "0-1"]
[ECO "B56"]
[WhiteElo "1584"]
[BlackElo "1879"]
[Annotator "NA COMBH"]
[PlyCount "107"]
[EventDate "2024.12.15"]
[EventType "swiss"]
[EventCountry "UAE"]
[SourceTitle "playchess.com"]
[Source "ChessBase"]
[SourceQuality "1"]
[TimeControl "900+10"]

1. e4 {[%emt 0:00:04]} c5 {[%emt 0:00:01]} 2. Nf3 {[%emt 0:00:02]} d6 {[%emt 0:00:01]} 3. d4 {[%emt 0:00:03]} cxd4 {[%emt 0:00:02]} 4. Nxd4 {[%emt 0:00:01]} Nf6 {[%emt 0:00:02]} 5. Nc3 {[%emt 0:00:01]} Nc6 {[%emt 0:00:03]} 6. Be3 {[%emt 0:00:01]} Ng4 {[%emt 0:00:02]} 7. Bb5 {[%emt 0:00:18]} Bd7 {[%emt 0:00:41]} 8. O-O {[%emt 0:00:15] is the legacy move (8.Nxc6).} Nxe3 {[%emt 0:01:07]} 9. fxe3 {[%emt 0:00:01]} Ne5 {[%emt 0:01:19]} 10. Bxd7+ {[%emt 0:00:30] B56: Classical Sicilian: Unusual Lines.} Qxd7 {[%emt 0:00:08]} 11. Nf3 {[%emt 0:00:10]} Nc6 {[%emt 0:02:46]} 12. Qd2 $146 {[%emt 0:00:50]} ({Predecessor:} 12. Ng5 f6 13. Qd5 fxg5 14. Qf7+ Kd8 15. Qxf8+ Rxf8 16. Rxf8+ {0-1 Mayorga,N (2249)-Fier,A (2454) South America-ch U20 2006 (2)}) 12... e6 {[%emt 0:01:58]} 13. Rad1 {[%emt 0:00:24]} Rd8 {[%emt 0:00:30]} 14. Qf2 {[%emt 0:01:16]} Be7 {[%emt 0:03:21]} 15. b4 {[%emt 0:00:46]} Bf6 {[%emt 0:01:58]} 16. b5 {[%emt 0:00:49]} Ne5 {[%emt 0:00:17]} 17. Nxe5 {[%emt 0:00:48]} Bxe5 {[%emt 0:00:11]} 18. Nb1 {[%emt 0:00:20]} O-O {[%emt 0:00:04]} 19. a4 {[%emt 0:00:13]} Qc7 {[%emt 0:00:09]} 20. Qe2 {[%emt 0:01:15]} Rc8 {[%emt 0:00:05]} 21. Rd2 {[%emt 0:00:22]} Qa5 {[%emt 0:00:13]} 22. c3 {[%emt 0:04:10]} Qc7 {[%emt 0:01:03]} 23. Rc2 {[%emt 0:00:15]} Qc4 {[%emt 0:00:20]} 24. Qh5 {[%emt 0:00:57]} Qxa4 {[%emt 0:00:38]} 25. Rcf2 {[%emt 0:00:04]} Rc7 {[%emt 0:00:36]} 26. Qg4 {[%emt 0:00:47]} Qxb5 {[%emt 0:00:11]} 27. Nd2 {[%emt 0:00:46]} Bxc3 {[%emt 0:00:45]} 28. Nf3 {[%emt 0:00:09]} f5 {[%emt 0:00:37]} 29. Qh5 {[%emt 0:00:16]} Qe8 {[%emt 0:00:16]} 30. Qh4 {[%emt 0:00:25]} Bf6 {[%emt 0:00:04]} 31. Qg3 {[%emt 0:00:18]} Qg6 {[%emt 0:00:01]} 32. Qxd6 {[%emt 0:00:15]} Rc6 {[%emt 0:00:25]} 33. Qb4 {[%emt 0:00:49]} Rb6 {[%emt 0:00:03]} 34. Qc4 {[%emt 0:00:09]} Qg4 {[%emt 0:00:22]} 35. Qa2 {[%emt 0:00:26]} Ra6 {[%emt 0:00:07]} 36. Qb3 {[%emt 0:00:07]} Qxe4 {[%emt 0:00:02]} 37. Nd2 {[%emt 0:01:08]} Qa4 {[%emt 0:00:09]} 38. Qd3 {[%emt 0:00:17]} Rd8 {[%emt 0:00:10]} 39. Qb1 {[%emt 0:00:20]} Rb6 {[%emt 0:00:05]} 40. Qc1 {[%emt 0:00:05]} Qc6 {[%emt 0:00:23]} 41. Qe1 {[%emt 0:00:30]} Bc3 {[%emt 0:00:05]} 42. e4 {[%emt 0:00:20]} Rb2 {[%emt 0:00:34]} 43. exf5 {[%emt 0:00:12]} e5 {[%emt 0:00:11]} 44. f6 {[%emt 0:00:20]} Rbxd2 {[%emt 0:00:06]} 45. f7+ {[%emt 0:00:17]} Kf8 {[%emt 0:00:04]} 46. Qc1 {[%emt 0:00:36]} Rxf2 {[%emt 0:00:14]} 47. Rxf2 {[%emt 0:00:06]} Bd4 {[%emt 0:00:02]} 48. Qa3+ {[%emt 0:00:05]} Qd6 {[%emt 0:00:02]} 49. Qh3 {[%emt 0:00:22]} Bxf2+ {[%emt 0:00:02]} 50. Kxf2 {[%emt 0:00:01]} Qd2+ {[%emt 0:00:02]} 51. Kf1 {[%emt 0:00:13]} Qd1+ {[%emt 0:00:01]} 52. Kf2 {[%emt 0:00:01]} Rd2+ {[%emt 0:00:01]} 53. Kg3 {[%emt 0:00:45]} Rd3+ {[%emt 0:00:05] Check Result:-#6} 54. Kh4 {[%emt 0:00:00]} 0-1

[Event "Asian Amateur Rapid 2024"]
[Site "Al Ain"]
[Date "2024.12.15"]
[Round "4.21"]
[White "Al Hosni, Khalfan"]
[Black "Maleki, Alimohammad"]
[Result "1-0"]
[ECO "B07"]
[WhiteElo "1749"]
[BlackElo "1488"]
[Annotator "NA COMBH"]
[PlyCount "49"]
[EventDate "2024.12.15"]
[EventType "swiss"]
[EventCountry "UAE"]
[SourceTitle "playchess.com"]
[Source "ChessBase"]
[SourceQuality "1"]
[TimeControl "900+10"]

1. e4 {[%emt 0:00:31]} d6 {[%emt 0:00:05]} 2. d4 {[%emt 0:00:01]} Nf6 {[%emt 0:00:01]} 3. Nc3 {[%emt 0:00:02]} Nbd7 {[%emt 0:00:02]} 4. Bg5 {[%emt 0:00:04]} c6 {[%emt 0:00:50]} 5. f4 {[%emt 0:00:14]} Qa5 {[%emt 0:01:14]} 6. Qd2 {[%emt 0:00:22]} e5 {[%emt 0:01:38]} 7. Nf3 {[%emt 0:01:19]} Be7 {[%emt 0:00:52]} 8. fxe5 {[%emt 0:00:22]} dxe5 {[%emt 0:00:21]} 9. Bc4 {[%emt 0:00:18]} exd4 {[%emt 0:03:17]} 10. Nxd4 {[%emt 0:00:32]} Ne5 {[%emt 0:00:52]} 11. Bb3 {[%emt 0:01:33]} h6 {[%emt 0:01:07]} 12. Bxf6 {[%emt 0:01:58]} Bxf6 {[%emt 0:00:33]} 13. O-O {[%emt 0:00:32]} Ng4 {[%emt 0:01:57]} 14. e5 {[%emt 0:02:19]} Nxe5 {[%emt 0:00:45]} 15. Rae1 {[%emt 0:00:19]} O-O {[%emt 0:00:10]} 16. Rxf6 {[%emt 0:00:13]} gxf6 {[%emt 0:00:29]} 17. Qxh6 {[%emt 0:00:14]} Ng4 {[%emt 0:00:43]} 18. Qg6+ {[%emt 0:01:33]} Kh8 {[%emt 0:00:01]} 19. Qd3 {[%emt 0:01:55]} Qg5 {[%emt 0:02:06]} 20. Ne4 {[%emt 0:00:37]} Qg6 {[%emt 0:00:47]} 21. h3 {[%emt 0:00:56]} Ne5 {[%emt 0:00:02]} 22. Qe3 {[%emt 0:01:20]} Bf5 {[%emt 0:00:10]} 23. Nxf5 {[%emt 0:00:34]} Qxf5 {[%emt 0:00:02]} 24. Rf1 {[%emt 0:00:05]} Qd7 {[%emt 0:00:54] Check Result:#1} 25. Qh6+ {[%emt 0:00:12]} 1-0

[Event "Asian Amateur Rapid 2024"]
[Site "Al Ain"]
[Date "2024.12.15"]
[Round "4.22"]
[White "Medetuly, Nurdaulet"]
[Black "Hayder, Hassan Shyaa"]
[Result "1/2-1/2"]
[ECO "D55"]
[WhiteElo "1618"]
[BlackElo "1991"]
[Annotator "RC"]
[PlyCount "115"]
[EventDate "2024.12.15"]
[EventType "swiss"]
[EventCountry "UAE"]
[SourceTitle "playchess.com"]
[Source "ChessBase"]
[SourceQuality "1"]
[TimeControl "900+10"]

1. d4 {[%emt 0:00:03]} d5 {[%emt 0:00:00]} 2. c4 {[%emt 0:00:03]} e6 {[%emt 0:00:02]} 3. cxd5 {[%emt 0:00:05]} exd5 {[%emt 0:00:01]} 4. Nc3 {[%emt 0:00:01]} Nf6 {[%emt 0:00:02]} 5. Bg5 {[%emt 0:00:02]} Be7 {[%emt 0:00:00]} 6. e3 {[%emt 0:00:03]} O-O {[%emt 0:00:04]} 7. Bd3 {[%emt 0:00:05]} h6 {[%emt 0:00:27]} 8. Bh4 {[%emt 0:00:02]} b6 {[%emt 0:00:11]} 9. Qc2 {[%emt 0:00:06]} Bb7 {[%emt 0:00:10]} 10. Nf3 {[%emt 0:00:09]} Nbd7 {[%emt 0:00:02]} 11. O-O {[%emt 0:00:05]} c5 {[%emt 0:00:04]} 12. Rfe1 {[%emt 0:00:53]} Rc8 {[%emt 0:00:33]} 13. Rad1 {[%emt 0:00:59]} Ne4 {[%emt 0:01:08]} 14. Bxe7 {[%emt 0:00:23]} Qxe7 {[%emt 0:00:04]} 15. Bxe4 {[%emt 0:00:59]} dxe4 {[%emt 0:00:05]} 16. Nd2 {[%emt 0:00:02]} cxd4 {[%emt 0:00:14]} 17. exd4 {[%emt 0:00:11]} f5 {[%emt 0:00:09]} 18. Qb3+ {[%emt 0:00:31]} Kh7 {[%emt 0:00:30]} 19. Nc4 {[%emt 0:01:21]} Qg5 {[%emt 0:01:28]} 20. Nd6 {[%emt 0:01:04]} Rc7 {[%emt 0:00:26]} 21. Ncb5 {[%emt 0:00:55]} e3 {[%emt 0:00:20]} 22. Nxb7 {[%emt 0:00:26]} exf2+ {[%emt 0:00:05]} 23. Kxf2 {[%emt 0:00:02]} Rxb7 {[%emt 0:00:02]} 24. Qd5 {[%emt 0:00:50]} Rfb8 {[%emt 0:00:09]} 25. Nd6 {[%emt 0:02:02]} Nf6 {[%emt 0:00:02]} 26. Qxf5+ {[%emt 0:00:25]} Qxf5+ {[%emt 0:00:22]} 27. Nxf5 {[%emt 0:00:02]} Nd5 {[%emt 0:00:17]} 28. Re5 {[%emt 0:00:58]} Rd7 {[%emt 0:00:13]} 29. g3 {[%emt 0:00:49]} Rf8 {[%emt 0:00:22]} 30. Ke2 {[%emt 0:00:19]} Rfd8 {[%emt 0:00:22]} 31. Rd2 {[%emt 0:01:24]} g6 {[%emt 0:00:18]} 32. Ne3 {[%emt 0:00:14]} Nb4 {[%emt 0:00:02]} 33. Re4 {[%emt 0:01:53]} Nxa2 {[%emt 0:00:02]} 34. Nc2 {[%emt 0:01:40]} Nc1+ {[%emt 0:00:08]} 35. Kd1 {[%emt 0:00:41]} Nb3 {[%emt 0:00:05]} 36. Rde2 {[%emt 0:00:44]} Nxd4 {[%emt 0:00:11]} 37. Re7+ {[%emt 0:00:16]} Rxe7 {[%emt 0:00:23]} 38. Rxe7+ {[%emt 0:00:01]} Kg8 {[%emt 0:00:08]} 39. Nxd4 {[%emt 0:00:16]} Rxd4+ {[%emt 0:00:03]} 40. Kc2 {[%emt 0:00:12]} a5 {[%emt 0:00:13]} 41. Re6 {[%emt 0:00:08]} Rb4 {[%emt 0:00:18]} 42. Rxg6+ {[%emt 0:00:18]} Kh7 {[%emt 0:00:01]} 43. Rc6 {[%emt 0:00:22]} a4 {[%emt 0:00:12]} 44. Kc3 {[%emt 0:00:12]} Rb3+ {[%emt 0:00:05]} 45. Kc2 {[%emt 0:00:01]} b5 {[%emt 0:00:02]} 46. Ra6 {[%emt 0:00:10]} h5 {[%emt 0:01:47]} 47. Rb6 {[%emt 0:00:08]} Kg7 {[%emt 0:00:11]} 48. Kc1 {[%emt 0:00:16]} Rb4 {[%emt 0:02:58]} 49. Kc2 {[%emt 0:00:13]} Rc4+ {[%emt 0:00:46]} 50. Kd3 {[%emt 0:00:02]} Rc5 {[%emt 0:00:04]} 51. Kd4 {[%emt 0:00:14]} Rc4+ {[%emt 0:00:01]} 52. Kd3 {[%emt 0:00:02]} Rc5 {[%emt 0:00:55]} 53. Kd4 {[%emt 0:00:01]} Rf5 {[%emt 0:00:41]} 54. Ke4 {[%emt 0:00:21]} Rc5 {[%emt 0:00:41]} 55. Kd4 {[%emt 0:00:01]} Rc4+ {[%emt 0:00:05]} 56. Kd3 {[%emt 0:00:07]} Rb4 {[%emt 0:00:14]} 57. Kc3 {[%emt 0:00:06]} Rb3+ {[%emt 0:00:53]} 58. Kc2 {[%emt 0:00:01]} 1/2-1/2